[Event "26th Womens ECCC 2022"]
[Site "Mayrhofen"]
[Date "2022.10.05"]
[Round "3.30"]
[White "Peglau, Dora"]
[Black "Federovski, Adi"]
[Result "1-0"]
[ECO "A48"]
[WhiteElo "1745"]
[BlackElo "1967"]
[Annotator "TA"]
[PlyCount "75"]
[EventDate "2022.10.03"]
[EventType "team-tourn"]
[EventCountry "AUT"]
[SourceTitle "playchess.com"]
[Source "ChessBase"]
[SourceQuality "1"]
[TimeControl "40/5400+30:1800+30"]

{[%evp 9,75,16,11,8,10,0,-7,-4,-11,-39,-25,-6,-24,-170,-153,-157,-152,-279,-272,-273,-279,-278,-286,-266,-272,-276,-264,-337,-335,-317,-285,-285,-161,-168,-112,-106,0,0,0,0,0,0,0,0,0,-41,0,0,0,0,0,0,43,16,50,20,174,15,495,489,457,305,305,-455,1261,1255,5365,2575]} 1. d4 {[%emt 0:00:04]} Nf6 {[%emt 0:00:10]} 2. Nf3 {[%emt 0:00:12]} g6 {[%emt 0:00:27]} 3. Nbd2 {[%emt 0:00:07]} d5 {[%emt 0:02:46]} 4. b4 {[%emt 0:00:05][%cal Bb2b4,Bb4b5][%mdl 32]} Bg7 {[%emt 0:00:36]} 5. Bb2 {[%emt 0:00:11]} a5 {[%emt 0:05:14]} 6. b5 {[%emt 0:00:10] D02: 1 d4 d5 2 Nf3 sidelines, including 2...Nf6 3 g3 and 2...Nf6 3 Bf4.} a4 {[%emt 0:01:03]} 7. a3 {[%emt 0:04:05]} O-O {[%emt 0:01:03]} 8. e3 {[%emt 0:00:18] The position is equal.} c6 {[%emt 0:03:35]} 9. c4 {[%emt 0:07:38] [#]} dxc4 $146 {[%emt 0:10:22]} ({Predecessor:} 9... Nbd7 10. Be2 c5 11. O-O b6 12. cxd5 Nxd5 13. Nc4 Bb7 14. Rc1 Rc8 15. Qd2 cxd4 16. Bxd4 Nc5 17. Bxg7 Nb3 18. Rfe1 Nxd2 {0-1 (18) Xiong,J (2709)-Naroditsky,D (2621) Chess.com INT 2020}) 10. Bxc4 {[%emt 0:00:35]} cxb5 {[%emt 0:00:05]} 11. Bxb5 {[%emt 0:00:47]} (11. Bd3 $11 {and White stays safe.}) 11... Qb6 $1 $19 {[%emt 0:03:46]} 12. Qe2 {[%emt 0:06:58]} Ra5 $36 {[%emt 0:14:53][%mdl 2048] White is under strong pressure.} 13. Nc4 {[%emt 0:04:32]} (13. Bd3 $17 Qxb2 14. O-O) 13... Qxb5 {[%emt 0:01:29]} 14. Nxa5 {[%emt 0:00:06]} Qxa5+ {[%emt 0:00:05]} 15. Qd2 {[%emt 0:00:46]} Qd5 {[%emt 0:01:42] And now ...Ne4 would win.} 16. O-O {[%emt 0:01:56]} Nc6 {[%emt 0:05:09]} 17. Rac1 {[%emt 0:06:00]} Ne4 {[%emt 0:04:44]} 18. Qe1 {[%emt 0:03:14]} Na5 {[%emt 0:09:19]} 19. Qb4 {[%emt 0:02:54]} Bd7 {[%emt 0:09:41] aiming for ...Nb3.} 20. Ne5 {[%emt 0:04:43]} Bxe5 {[%emt 0:00:41]} (20... Nb3 $142 21. Rc7 Bxe5 22. dxe5 Nbd2) 21. dxe5 {[%emt 0:00:14]} Bc6 {[%emt 0:04:20]} (21... Qb3 22. e6 Bxe6 23. Qxe4 Qxb2 24. Qxa4 Qb6) (21... Nc6 $19 22. Qxa4 Nxe5) 22. f3 $17 {[%emt 0:03:38]} Nd2 {[%emt 0:01:14]} (22... Ng5 23. Qxe7 (23. Rc5 Qb3) 23... Ne6) ({Black should try} 22... Ng5 $1 $17 {...Qb5 is the strong threat.} 23. Bc3 (23. Rc5 $2 Qb3 $19) 23... Nc4) 23. e4 $11 {[%emt 0:06:50]} Qd3 {[%emt 0:02:40]} 24. Qxa5 {[%emt 0:01:44]} Nxf1 {[%emt 0:00:30]} 25. Rxf1 {[%emt 0:00:06][%cal Bc1f1,Bf1f2,Bf2d2,Bd2d8,Bd8a8][%mdl 32]} Rd8 {[%emt 0:01:58][%cal Bf8d8,Bd8d3,Bd3e3][%mdl 32]} 26. Qc3 {[%emt 0:01:12]} Qb5 {[%emt 0:04:15]} 27. Qc2 {[%emt 0:21:36]} (27. e6 Qb6+ 28. Kh1 f6 $15) 27... Rd3 {[%emt 0:03:22]} (27... Qb3 $5 {[%cal Rb3c2]} 28. Qc1 Bb5 $11) 28. Rf2 {[%emt 0:01:06]} Bd7 {[%emt 0:04:56]} 29. Rd2 {[%emt 0:02:07]} Qb6+ {[%emt 0:00:40]} 30. Kh1 {[%emt 0:01:08]} Re3 {[%emt 0:03:17][%cal Re3e1]} 31. Qd1 {[%emt 0:03:17] Against Re1+} Qc6 {[%emt 0:01:15][%cal Oe3b3]} 32. h4 {[%emt 0:02:52]} ({But not} 32. Rxd7 $2 Qxd7 $3 {[%mdl 512]} 33. Bd4 Rxa3 $19) (32. h3 $5 {[%cal Rd2d7]} Rb3 33. e6 (33. Rxd7 Rxb2 34. Rxe7 Qc5 $11) 33... Qxe6 34. Bc1 $11 (34. Rxd7 Rxb2 35. Qxa4 Qe5 $11)) 32... Be6 {[%emt 0:00:17]} (32... Rb3 $1 $11) 33. Kh2 $2 {[%emt 0:02:02]} (33. Rd8+ Kg7 34. Ra8) ({White should play} 33. Rd8+ $18 Kg7 34. Ra8) 33... h5 $2 {[%emt 0:00:30][%mdl 8192]} (33... Kg7 $11 {and Black is okay.}) 34. Rd8+ $18 {[%emt 0:03:29]} Kg7 {[%emt 0:00:16]} 35. Ra8 {[%emt 0:01:45]} Qb6 {[%emt 0:01:04] [#]} 36. Qxa4 $4 {[%emt 0:03:19][%mdl 8192]} Qc6 $4 {[%emt 0:00:14][%mdl 8192]} (36... Qxb2 $19 37. Qe8 Qxe5+ 38. Kg1 Qa1+ 39. Kh2 Kh7 40. Qg8+ Kh6 41. Qf8+ Qg7 42. Qxe7 Qe5+ 43. Kg1 Re1+ 44. Kf2 {[#]} Rf1+ $3 {[%mdl 512]} 45. Ke3 Kh7) 37. Qd4 {[%emt 0:00:35] White wants to mate with Qd8.} Re2 {[%emt 0:00:50] [#]} 38. Qd8 $1 {[%emt 0:00:41] What a bad dream for Black.  Weighted Error Value: White=0.53/Black=0.40} 1-0

[Event "26th Womens ECCC 2022"]
[Site "Mayrhofen"]
[Date "2022.10.05"]
[Round "3.31"]
[White "Reprun, Nadejda"]
[Black "Peglau, Mirjam"]
[Result "1/2-1/2"]
[ECO "B27"]
[WhiteElo "1968"]
[BlackElo "1886"]
[Annotator "TA"]
[PlyCount "61"]
[EventDate "2022.10.03"]
[EventType "team-tourn"]
[EventCountry "AUT"]
[SourceTitle "playchess.com"]
[Source "ChessBase"]
[SourceQuality "1"]
[TimeControl "40/5400+30:1800+30"]

{[%evp 9,61,44,33,30,73,31,41,43,47,-80,-85,-92,-91,-84,-88,-81,0,0,0,0,0,0,0,0,14,9,0,0,11,-2,5,0,4,5,5,0,0,0,0,0,0,0,0,0,0,-5,-5,-5,-5,-5,-5,-5,-1,-5]} 1. e4 {[%emt 0:00:02]} c5 {[%emt 0:00:04]} 2. Nf3 {[%emt 0:00:03]} b6 {[%emt 0:00:04]} 3. Bc4 {[%emt 0:01:09]} Bb7 {[%emt 0:00:08]} 4. Nc3 {[%emt 0:01:42]} e6 {[%emt 0:01:07]} 5. O-O {[%emt 0:05:08]} Nf6 {[%emt 0:03:44][%cal Bg8f6,Bf6e4,Be4c3,Bc3d1][%mdl 32]} 6. Re1 {[%emt 0:05:08] B27: Sicilian: 2 Nf3, unusual Black 2nd moves.} Be7 {[%emt 0:00:27]} 7. d4 {[%emt 0:03:32] White is more active.} (7. e5 $5 {[%cal Re5f6]}) 7... cxd4 {[%emt 0:01:40]} 8. Nxd4 {[%emt 0:01:07] e5 is the strong threat. White is slightly better.} O-O {[%emt 0:00:18][%cal Of6e4] [#]} 9. Bg5 $146 {[%emt 0:12:07] [#]} (9. e5 $14 {keeps the upper hand.}) ({Predecessor:} 9. Bf4 Na6 10. Ndb5 d5 11. exd5 Nxd5 12. Nxd5 exd5 13. Bf1 Nc5 14. Qg4 Re8 15. Nc7 {1-0 (27) Diaz Begonte,M (1774)-Munoz Gonzalez,M (1560) Tres Cantos 2011}) 9... Nxe4 $1 $17 {[%emt 0:12:28]} 10. Bxe7 {[%emt 0:01:46]} (10. Nxe4 Bxg5) 10... Nxc3 {[%emt 0:04:06]} 11. Bxd8 {[%emt 0:03:16]} Nxd1 {[%emt 0:00:02]} 12. Be7 {[%emt 0:00:58]} Rc8 {[%emt 0:05:31]} (12... Nxb2 $17 13. Bxf8 Nxc4) 13. Bxe6 $11 {[%emt 0:02:35] The position is equal.} dxe6 {[%emt 0:04:37]} 14. Raxd1 {[%emt 0:00:20][%cal Ba1d1,Bd1d4,Bd4d8][%mdl 32]} Nc6 {[%emt 0:06:24]} 15. Nxc6 {[%emt 0:00:06]} Bxc6 {[%emt 0:00:01]} 16. c4 {[%emt 0:02:08] Against Bd5} Be8 {[%emt 0:09:22]} 17. Rd4 {[%emt 0:02:51]} Rc7 {[%emt 0:02:07]} 18. Ba3 {[%emt 0:06:57]} a5 {[%emt 0:08:50]} 19. Red1 {[%emt 0:05:08]} h6 {[%emt 0:01:00]} 20. Rd8 {[%emt 0:03:21]} Rac8 {[%emt 0:06:33]} 21. b3 {[%emt 0:01:31]} Kh7 {[%emt 0:00:02]} 22. h3 {[%emt 0:06:26]} b5 {[%emt 0:03:27]} 23. Rxc8 {[%emt 0:00:10]} Rxc8 {[%emt 0:00:02]} 24. cxb5 {[%emt 0:00:06]} Bxb5 {[%emt 0:00:06]} 25. Rc1 {[%emt 0:00:59]} Rxc1+ {[%emt 0:08:17]} 26. Bxc1 {[%emt 0:01:43] KB-KB} Kg6 {[%emt 0:01:17]} 27. Bb2 {[%emt 0:02:43]} f6 {[%emt 0:00:44]} 28. Bc3 {[%emt 0:00:59]} a4 {[%emt 0:00:06]} 29. bxa4 {[%emt 0:00:32]} Bxa4 {[%emt 0:00:01]} 30. f3 {[%emt 0:02:37]} Kf5 {[%emt 0:01:41]} 31. h4 {[%emt 0:03:21] Weighted Error Value: White=0.14 (very precise) /Black=0.08 (flawless)} 1/2-1/2

[Event "26th Womens ECCC 2022"]
[Site "Mayrhofen"]
[Date "2022.10.05"]
[Round "3.32"]
[White "Peglau, Sarah"]
[Black "Vardi, Shlomit"]
[Result "0-1"]
[ECO "A41"]
[WhiteElo "1794"]
[BlackElo "1769"]
[Annotator "NA RC COMBH"]
[PlyCount "78"]
[EventDate "2022.10.03"]
[EventType "team-tourn"]
[EventCountry "AUT"]
[SourceTitle "playchess.com"]
[Source "ChessBase"]
[SourceQuality "1"]
[TimeControl "40/5400+30:1800+30"]

1. d4 {[%emt 0:00:04]} d6 {[%emt 0:00:10]} 2. e4 {[%emt 0:00:37]} g6 {[%emt 0:00:08]} 3. f4 {[%emt 0:01:36]} Bg7 {[%emt 0:00:49]} 4. Nf3 {[%emt 0:01:06]} Nf6 {[%emt 0:01:56]} 5. Bd3 {[%emt 0:01:57]} O-O {[%emt 0:00:59]} 6. O-O {[%emt 0:01:38]} c5 {[%emt 0:07:29]} 7. c3 {[%emt 0:02:56]} Bg4 {[%emt 0:06:21]} 8. Nbd2 {[%emt 0:01:23]} cxd4 {[%emt 0:01:12]} 9. cxd4 {[%emt 0:00:43]} e5 {[%emt 0:01:54]} 10. h3 {[%emt 0:04:12]} Bxf3 {[%emt 0:00:38]} 11. Nxf3 {[%emt 0:00:38]} exd4 {[%emt 0:04:00]} 12. Nxd4 {[%emt 0:05:28]} Qb6 {[%emt 0:03:22]} 13. Be3 {[%emt 0:00:33]} Qxb2 {[%emt 0:14:16]} 14. Qa4 {[%emt 0:05:35]} Nbd7 {[%emt 0:05:50]} 15. Rab1 {[%emt 0:03:01]} Qc3 {[%emt 0:00:46]} 16. Rb3 {[%emt 0:03:03]} Nc5 {[%emt 0:03:01]} 17. Rxc3 {[%emt 0:05:44]} Nxa4 {[%emt 0:00:25]} 18. Ra3 {[%emt 0:08:36]} Nc5 {[%emt 0:03:10]} 19. Nb5 {[%emt 0:09:05]} Nxd3 {[%emt 0:05:43]} 20. Rxd3 {[%emt 0:00:02]} Nxe4 {[%emt 0:00:27]} 21. Nxd6 {[%emt 0:11:07]} Nxd6 {[%emt 0:00:27]} 22. Rxd6 {[%emt 0:05:11]} Rfe8 {[%emt 0:00:40]} 23. Bf2 {[%emt 0:02:49]} b5 {[%emt 0:16:15]} 24. Ra6 {[%emt 0:05:26]} Re4 {[%emt 0:03:49]} 25. g3 {[%emt 0:09:17]} Re6 {[%emt 0:11:03]} 26. Ra3 {[%emt 0:08:16]} a6 {[%emt 0:03:25]} 27. Rd1 {[%emt 0:00:22]} Rc8 {[%emt 0:00:41]} 28. Rad3 {[%emt 0:00:22]} Bf6 {[%emt 0:01:08]} 29. R3d2 {[%emt 0:02:55]} Kg7 {[%emt 0:00:34]} 30. g4 {[%emt 0:00:34]} g5 {[%emt 0:01:41]} 31. fxg5 {[%emt 0:00:38]} Bxg5 {[%emt 0:00:08]} 32. Rd7 {[%emt 0:00:18]} Rc4 {[%emt 0:02:47]} 33. Ra7 {[%emt 0:01:10]} Be3 {[%emt 0:00:41]} 34. Rdd7 {[%emt 0:00:28]} Rc1+ {[%emt 0:00:40]} 35. Kg2 {[%emt 0:00:08]} Bxa7 {[%emt 0:00:06]} 36. Rxa7 {[%emt 0:00:30]} Rc2 {[%emt 0:00:19]} 37. Kg3 {[%emt 0:00:12]} Rd6 {[%emt 0:00:41]} 38. h4 {[%emt 0:00:51]} Rd3+ {[%emt 0:00:10]} 39. Kg2 {[%emt 0:00:03]} Rdd2 {[%emt 0:00:11]} 0-1

[Event "26th Womens ECCC 2022"]
[Site "Mayrhofen"]
[Date "2022.10.06"]
[Round "4.1"]
[White "Bulmaga, Irina"]
[Black "Danielian, Elina"]
[Result "1-0"]
[ECO "C17"]
[WhiteElo "2417"]
[BlackElo "2431"]
[Annotator "TA"]
[PlyCount "185"]
[EventDate "2022.10.03"]
[EventType "team-tourn"]
[EventCountry "AUT"]
[SourceTitle "playchess.com"]
[Source "ChessBase"]
[SourceQuality "1"]
[TimeControl "40/5400+30:1800+30"]

{[%evp 17,185,27,27,11,20,23,56,54,66,69,65,-32,0,0,0,0,0,0,22,0,18,0,17,12,27,12,12,8,10,17,22,0,0,-23,-34,-22,-19,-94,0,0,0,0,0,0,0,0,0,0,0,-7,75,59,152,134,150,151,126,116,87,45,311,352,339,341,672,652,615,605,690,680,662,661,700,667,980,867,4125,12837,1569,3697,12848,12850,29964,29965,29964,29965,29959,29957,29979,29980,29983,29984,29984,29985,29985,29986,29986,29987,29968,29970,29969,29970,29969,29970,29970,29971,29971,29971,29971,29972,29970,29972,29971,29972,29973,29974,29974,29975,29975,29976,29975,29974,29973,29974,29975,29976,29976,29977,29978,29979,29979,29980,29980,29979,29981,29982,29982,4137,29983,29984,29984,29984,29984,29984,29987,29988,29988,29989,29989,29989,29989,29989,29990,29990,29991,29992,29992,29992,29993,29994,29994,29995,29995,29996,29996,29995,29997,29998,29998,29999]} 1. e4 {[%emt 0:00:04]} e6 {[%emt 0:00:03]} 2. d4 {[%emt 0:00:07]} d5 {[%emt 0:00:03]} 3. Nc3 {[%emt 0:00:08]} Bb4 {[%emt 0:00:15]} 4. e5 {[%emt 0:00:17]} c5 {[%emt 0:00:03]} 5. a3 {[%emt 0:00:12]} Ba5 {[%emt 0:00:12]} 6. b4 {[%emt 0:00:31]} cxd4 {[%emt 0:00:19]} 7. Nb5 {[%emt 0:00:17]} Bc7 {[%emt 0:00:09]} 8. f4 {[%emt 0:00:32]} Bd7 {[%emt 0:01:32]} 9. Nxc7+ {[%emt 0:00:19]} Qxc7 {[%emt 0:00:03]} 10. Bb2 {[%emt 0:00:53] C18: French: 3 Nc3 Bb4: Main line: 7 h4 and 7 Qg4.} Ne7 {[%emt 0:07:33]} 11. Bd3 {[%emt 0:01:50]} Ba4 {[%emt 0:07:15]} 12. Bxd4 {[%emt 0:06:11] [#] White is slightly better.} Nf5 $146 {[%emt 0:16:54]} ({Predecessor:} 12... Nd7 13. Ne2 Nc6 14. Bb2 Nb6 15. O-O g6 16. Qe1 a6 17. Nc3 Ne7 18. b5 O-O 19. bxa6 bxa6 {½-½ (41) Saric,I (2681)-Mchedlishvili,M (2571) Konya 2019}) 13. Bxf5 {[%emt 0:21:01]} exf5 {[%emt 0:00:15]} 14. Qd2 {[%emt 0:06:16]} ({Better is} 14. Ne2 $14) 14... O-O {[%emt 0:00:12]} 15. c3 {[%emt 0:00:48]} Nc6 {[%emt 0:09:40]} 16. Nf3 {[%emt 0:03:53]} Rfc8 {[%emt 0:02:26]} 17. Rc1 {[%emt 0:08:43]} Bb5 {[%emt 0:06:03]} 18. Kf2 {[%emt 0:00:22]} (18. Be3 $5 {[%cal Rd2d5]}) 18... a5 {[%emt 0:01:18]} 19. Ra1 {[%emt 0:11:07]} Bc4 {[%emt 0:01:32]} 20. Qe3 {[%emt 0:04:43]} Qd7 {[%emt 0:01:42]} 21. h3 {[%emt 0:02:19]} Ra6 {[%emt 0:03:21]} 22. Rhe1 {[%emt 0:04:15]} Rca8 {[%emt 0:09:45]} 23. Bc5 {[%emt 0:04:15]} axb4 {[%emt 0:05:53]} 24. cxb4 {[%emt 0:01:23]} Nd8 {[%emt 0:01:52]} 25. g4 {[%emt 0:08:01]} fxg4 {[%emt 0:04:45]} 26. hxg4 {[%emt 0:00:07]} Qxg4 {[%emt 0:01:56]} 27. Rg1 {[%emt 0:01:28] [#]} Qf5 {[%emt 0:01:45]} (27... Qd7 $1 $17 28. Nd4 Ne6) 28. Nd4 $1 $11 {[%emt 0:00:35] The board is on fire.} Qd3 {[%emt 0:01:21]} (28... Qh5 $2 29. Rh1 (29. Qg3 $2 Rg6 $19) 29... Qxh1 30. Rxh1 $18) 29. Qxd3 {[%emt 0:02:23]} Bxd3 {[%emt 0:00:03]} 30. Ke3 $36 {[%emt 0:02:41][%mdl 2048] Strongly threatening b5. White is more active.} Be4 {[%emt 0:01:25]} ({Don't play} 30... Rxa3 31. Rxa3 Rxa3 32. b5 $16) 31. b5 {[%emt 0:02:01]} Rh6 {[%emt 0:00:36]} 32. f5 {[%emt 0:00:57] Prevents Ne6.} Rh3+ {[%emt 0:05:58]} 33. Kf4 {[%emt 0:00:42]} h6 {[%emt 0:00:08]} (33... g6 $11) 34. e6 $16 {[%emt 0:01:52] [#] e7 is the strong threat.} fxe6 {[%emt 0:05:17]} (34... f6 $14) 35. fxe6 {[%emt 0:01:44]} b6 {[%emt 0:04:58]} 36. Bxb6 {[%emt 0:01:23] Black must now prevent Ke5.} Nb7 {[%emt 0:00:12]} 37. Kg4 {[%emt 0:00:43] Inhibits Rh5.} Rd3 {[%emt 0:01:32]} 38. Rgd1 {[%emt 0:00:53]} Rdxa3 $2 {[%emt 0:00:36][%mdl 8192] Loses the game.} (38... Nd6 $14) 39. Rxa3 $18 {[%emt 0:00:36]} Rxa3 {[%emt 0:00:02]} 40. Rc1 {[%emt 0:00:48] Prevents Rc3.} Kh7 $2 {[%emt 0:01:00]} (40... Ra8 41. Rc7 Nd6) 41. Rc7 {[%emt 0:09:36]} Nd6 {[%emt 0:03:14]} 42. Bc5 {[%emt 0:02:10][%csl LRa3,LRd6]} h5+ {[%emt 0:07:52]} 43. Kf4 {[%emt 0:05:32]} Nxb5 {[%emt 0:06:31]} 44. Nxb5 {[%emt 0:00:44]} Rf3+ {[%emt 0:00:03]} 45. Ke5 {[%emt 0:02:02]} h4 {[%emt 0:00:20]} 46. Rf7 {[%emt 0:02:15] Intending Nd6 and mate.} h3 {[%emt 0:04:02]} 47. Rxf3 {[%emt 0:02:02]} Bxf3 {[%emt 0:00:03]} 48. Bg1 {[%emt 0:00:13] Threatening mate with e7.} Kg8 {[%emt 0:05:04]} 49. Nc7 {[%emt 0:01:24] White wants to mate with e7.} Kf8 {[%emt 0:02:41]} 50. Kd6 {[%emt 0:00:48]} Bh5 {[%emt 0:00:04]} 51. e7+ {[%emt 0:01:28]} Kg8 {[%emt 0:00:03]} 52. Kxd5 {[%emt 0:00:15]} g5 {[%emt 0:02:23]} 53. Ke5 {[%emt 0:00:32]} g4 {[%emt 0:00:25]} 54. Bh2 {[%emt 0:00:07]} Kg7 {[%emt 0:01:42]} 55. Kf5 {[%emt 0:00:19]} Bg6+ {[%emt 0:01:52]} 56. Kg5 {[%emt 0:00:10]} Be8 {[%emt 0:00:33]} 57. Nxe8+ {[%emt 0:00:13]} Kf7 {[%emt 0:00:02]} 58. Nf6 {[%emt 0:00:16]} Kxe7 {[%emt 0:00:02]} 59. Nxg4 {[%emt 0:00:08]} Ke6 {[%emt 0:00:03]} 60. Kf4 {[%emt 0:00:12]} Kd5 {[%emt 0:00:15]} 61. Nf2 {[%emt 0:00:33]} Kd4 {[%emt 0:00:12]} 62. Kf3 {[%emt 0:00:13]} Kd5 {[%emt 0:00:10]} 63. Ke3 {[%emt 0:00:06]} Kc5 {[%emt 0:00:35]} 64. Kd3 {[%emt 0:00:11]} Kd5 {[%emt 0:00:14]} 65. Nxh3 {[%emt 0:00:14]} Kc5 {[%emt 0:00:18]} 66. Nf4 {[%emt 0:00:16]} Kd6 {[%emt 0:01:18]} 67. Kd4 {[%emt 0:00:10]} Kc6 {[%emt 0:00:05]} 68. Nd3 {[%emt 0:00:47]} Kb5 {[%emt 0:00:41]} 69. Bd6 {[%emt 0:00:11]} Kc6 {[%emt 0:00:12]} 70. Bc5 {[%emt 0:00:40]} Kc7 {[%emt 0:00:18]} 71. Kd5 {[%emt 0:00:18]} Kb7 {[%emt 0:00:18]} 72. Kd6 {[%emt 0:00:44]} Kc8 {[%emt 0:00:30]} 73. Kc6 {[%emt 0:00:57]} Kb8 {[%emt 0:00:19]} 74. Nf4 {[%emt 0:01:29]} Ka8 {[%emt 0:00:57]} 75. Nd5 {[%emt 0:00:08]} Kb8 {[%emt 0:00:08]} 76. Nc7 {[%emt 0:00:18]} Kc8 {[%emt 0:00:05]} 77. Ba7 {[%emt 0:00:20]} Kd8 {[%emt 0:00:04]} 78. Nd5 {[%emt 0:00:07] White mates.} Ke8 {[%emt 0:02:42]} 79. Kd6 {[%emt 0:00:11]} Kf7 {[%emt 0:00:04]} 80. Ne7 {[%emt 0:00:08]} Kf6 {[%emt 0:00:25]} 81. Be3 {[%emt 0:00:07]} Kf7 {[%emt 0:00:04]} 82. Bg5 {[%emt 0:00:58]} Ke8 {[%emt 0:00:05]} 83. Ke6 {[%emt 0:00:07]} Kd8 {[%emt 0:00:06]} 84. Bf4 {[%emt 0:00:04]} Ke8 {[%emt 0:00:06]} 85. Bc7 {[%emt 0:00:09]} Kf8 {[%emt 0:00:05]} 86. Nf5 {[%emt 0:00:15]} Ke8 {[%emt 0:00:17]} 87. Ng7+ {[%emt 0:00:16]} Kf8 {[%emt 0:00:03]} 88. Kf6 {[%emt 0:00:07]} Kg8 {[%emt 0:00:04]} 89. Kg6 {[%emt 0:00:18]} Kf8 {[%emt 0:00:37]} 90. Bd6+ {[%emt 0:00:06]} Kg8 {[%emt 0:00:03]} 91. Bc5 {[%emt 0:00:17]} Kh8 {[%emt 0:00:04]} 92. Nf5 {[%emt 0:00:05]} Kg8 {[%emt 0:00:06]} 93. Nh6+ {[%emt 0:00:05] Weighted Error Value: White=0.07 (flawless) /Black=0.46} 1-0

[Event "26th Womens ECCC 2022"]
[Site "Mayrhofen"]
[Date "2022.10.06"]
[Round "4.2"]
[White "Ushenina, Anna"]
[Black "Saduakassova, Dinara"]
[Result "1/2-1/2"]
[ECO "E46"]
[WhiteElo "2445"]
[BlackElo "2434"]
[Annotator "TA"]
[PlyCount "80"]
[EventDate "2022.10.03"]
[EventType "team-tourn"]
[EventCountry "AUT"]
[SourceTitle "playchess.com"]
[Source "ChessBase"]
[SourceQuality "1"]
[TimeControl "40/5400+30:1800+30"]

{[%evp 19,80,24,21,26,26,18,12,26,26,25,25,17,25,33,29,28,27,21,21,25,23,17,23,19,24,4,4,4,4,4,4,4,4,4,4,4,4,7,35,44,36,37,44,15,52,16,17,24,59,0,5,0,0,0,0,0,0,0,0,0,0,0,0]} 1. d4 {[%emt 0:00:04]} Nf6 {[%emt 0:00:29]} 2. c4 {[%emt 0:00:10]} e6 {[%emt 0:00:04]} 3. Nc3 {[%emt 0:00:15]} Bb4 {[%emt 0:01:10]} 4. e3 {[%emt 0:00:36]} O-O {[%emt 0:02:16]} 5. Bd2 {[%emt 0:00:48]} d5 {[%emt 0:05:34]} 6. Nf3 {[%emt 0:00:39]} b6 {[%emt 0:01:56]} 7. cxd5 {[%emt 0:00:48]} exd5 {[%emt 0:00:48]} 8. Rc1 {[%emt 0:00:09]} a6 {[%emt 0:04:47]} 9. Bd3 {[%emt 0:01:08]} Bb7 {[%emt 0:02:22]} 10. O-O {[%emt 0:00:09]} Bd6 {[%emt 0:03:57]} 11. Ne5 {[%emt 0:00:31] E52: Nimzo-Indian: Rubinstein: 4...0-0 5 Nf3 d5 6 Bd3 b6.} c5 {[%emt 0:03:26]} 12. f4 {[%emt 0:00:34]} Nc6 {[%emt 0:04:54]} 13. Ng4 $1 {[%emt 0:01:19] The main line 13.Ng4 scores better than 13.Ne2.} Be7 {[%emt 0:09:27]} 14. Nxf6+ {[%emt 0:00:48]} Bxf6 {[%emt 0:00:05]} 15. dxc5 {[%emt 0:00:35]} (15. Qh5 g6 16. Qf3 Nb4 $15) 15... bxc5 {[%emt 0:08:45]} ({Not} 15... Nb4 16. Bb1 $16) 16. b3 {[%emt 0:04:49]} ({Much worse is} 16. Qh5 g6 17. Qh3 (17. Qxd5 $2 Bxc3 18. Qxd8 Rfxd8 $19) 17... Re8 $15) 16... c4 {[%emt 0:07:23]} 17. bxc4 {[%emt 0:09:20]} Nb4 {[%emt 0:01:25]} 18. Bb1 {[%emt 0:03:55] [#] Threatens to win with a3.} dxc4 {[%emt 0:08:53]} 19. Ne4 {[%emt 0:05:38]} Bxe4 {[%emt 0:04:06]} 20. Bxe4 {[%emt 0:00:35]} c3 {[%emt 0:02:06]} (20... Nd3 {is more complex.} 21. Bxa8 Nxc1 22. Qxc1 Qxa8 23. Qxc4 Rc8) 21. Bxc3 {[%emt 0:07:28] A strong pair of Bishops.} Qxd1 {[%emt 0:00:51] [#]} 22. Rcxd1 $146 {[%emt 0:28:34]} ({Predecessor:} 22. Rfxd1 Nxa2 23. Bxf6 Nxc1 24. Bxa8 Rxa8 25. Bb2 Nb3 26. Kf2 a5 27. Kf3 a4 28. Ba3 {½-½ (83) Berdayes Ason,D (2445)-Mekhitarian,K (2554) Tornelo INT 2021}) 22... Bxc3 {[%emt 0:01:52]} 23. Bxa8 {[%emt 0:00:48]} Rxa8 {[%emt 0:00:14]} 24. a3 {[%emt 0:00:06]} Nc2 {[%emt 0:04:14][%csl LRa3,LRe3]} 25. Rc1 {[%emt 0:00:04]} Nxe3 {[%emt 0:00:11] [#] And now ...Bd2 would win.} 26. Rxc3 {[%emt 0:00:04]} Nxf1 {[%emt 0:00:04]} 27. Kxf1 $11 {[%emt 0:00:04][%mdl 4096] Endgame KR-KR} h5 {[%emt 0:06:20]} 28. Rc6 {[%emt 0:01:54]} Rd8 {[%emt 0:00:56]} 29. Rxa6 {[%emt 0:00:26]} Rd4 {[%emt 0:00:05]} 30. g3 {[%emt 0:00:15]} Rd2 {[%emt 0:00:07]} 31. h4 {[%emt 0:03:33]} Ra2 {[%emt 0:02:28]} 32. f5 {[%emt 0:13:47]} Kf8 {[%emt 0:01:55]} 33. Ra7 {[%emt 0:00:23]} Rc2 {[%emt 0:00:33]} 34. Ra8+ {[%emt 0:02:18]} (34. a4 $14) 34... Ke7 {[%emt 0:00:13] The position is equal.} 35. Rh8 {[%emt 0:00:12]} Ra2 {[%emt 0:02:02]} 36. Rxh5 {[%emt 0:00:07]} Kf6 {[%emt 0:00:14]} 37. Rh7 {[%emt 0:06:16]} Rxa3 {[%emt 0:00:20]} 38. Kg2 {[%emt 0:00:03]} Ra5 {[%emt 0:00:14]} 39. g4 {[%emt 0:00:20]} Ra2+ {[%emt 0:00:03]} 40. Kg3 {[%emt 0:00:04]} Ra3+ {[%emt 0:00:04] Weighted Error Value: White=0.07 (flawless) /Black=0.03 (flawless)} 1/2-1/2